fUSD/lending_fUSD_20250304
["ID","MTS","AMOUNT","RATE_DAILY","PERIOD"]
[355281687,1741054023381,525.47,9.87e-05,2]
[355281688,1741054023622,525.47,0.00012134,2]
[355281695,1741054031041,300.0,0.000123,4]
[355281696,1741054033180,600.0,0.000124,4]
[355281697,1741054035292,900.0,0.000125,4]
[355281701,1741054092682,-2049.0309,0.000126,2]
[355281702,1741054092713,-1924.8199,0.000126,2]
[355281703,1741054092744,-852.9659,0.000126,2]
[355281704,1741054092776,-1300.0,0.000126,4]
[355281705,1741054092806,-150.0,0.000126,2]
[355281706,1741054092839,-150.0,0.00012602,2]
[355281707,1741054092869,-115.19698522,0.00012603,2]
[355281708,1741054092909,-6542.01368522,0.00012603,2]
[355281709,1741054092946,-4060.19932956,0.00012603,2]
[355281710,1741054092979,-2481.81435566,0.00012605,2]
[355281711,1741054093019,-3086.6553565,0.00012605,2]
[355281712,1741054093051,-3455.35832872,0.00012605,2]
[355281713,1741054093098,-2537.30919965,0.00012605,2]
[355281714,1741054093131,-4004.70448557,0.00012638,2]
[355281715,1741054093172,-1987.96304278,0.00012638,2]
[355281716,1741054093203,-4554.05064244,0.00012671,2]
[355281717,1741054093252,-1438.61688591,0.00012671,2]
[355281718,1741054093282,-3249.53874243,0.00012671,2]
[355281719,1741054093311,-1853.85805688,0.00012682,2]
[355281720,1741054093354,-646.14194312,0.00012682,2]
[355281721,1741054093384,-150.0,0.00012689,2]
[355281722,1741054093413,-5745.8717421,0.0001269,2]
[355281723,1741054093448,-6542.01368522,0.0001269,2]
[355281724,1741054093746,-6542.01368522,0.0001269,2]
[355281725,1741054093781,-6542.01368522,0.0001269,2]
[355281726,1741054093815,-5261.04357819,0.0001269,2]
[355281727,1741054093867,-6542.01368522,0.0001269,2]
[355281728,1741054117748,-5928.00630145,0.0001269,2]
[355281729,1741054117779,-2289.31153979,0.00012696,2]
[355281730,1741054117836,-960.22720264,0.00012696,2]
[355281731,1741054117869,-239.11956355,0.00012699,2]
[355281732,1741054117900,-1375.57,0.00012699,2]
[355281733,1741054117930,-1285.92,0.00012699,2]
[355281734,1741054117960,-1566.1,0.00012699,2]
[355281735,1741054117991,-1036.48,0.00012699,2]
[355281736,1741054118021,-1753.90107505,0.00012699,2]
[355281737,1741054118066,-127.04892495,0.00012699,2]
[355281738,1741054118097,-7714.01589191,0.000127,2]
[355281739,1741054118136,-8217.31784124,0.000127,2]
[355281740,1741054118171,-8217.31784124,0.000127,2]
[355281741,1741054118215,-8217.31784124,0.000127,2]
[355281742,1741054118266,-8217.31784124,0.000127,2]
[355281746,1741054163312,534.17,0.00011816,2]
[355281761,1741054236480,-300.0,0.00012698,2]
[355281762,1741054236490,-1332.41848963,0.00012699,2]
[355281763,1741054236521,-773.33151037,0.00012699,2]
[355281764,1741054236532,-1638.82668531,0.00012699,2]
[355281765,1741054236622,-122.09331469,0.00012699,2]
[355281766,1741054236632,-150.0,0.00012699,2]
[355281767,1741054236641,-566.73,0.00012699,2]
[355281768,1741054236651,-956.91,0.00012699,2]
[355281769,1741054236661,-1021.39,0.00012699,2]
[355281770,1741054236670,-500.0,0.00012699,2]
[355281771,1741054236680,-1484.58,0.00012699,2]
[355281772,1741054236691,-2680.59,0.00012699,2]
[355281773,1741054236701,-1577.65,0.00012699,2]
[355281774,1741054236710,-878.63,0.00012699,2]
[355281775,1741054236720,-540.67668531,0.00012699,2]
[355281776,1741054236732,-359.4388472,0.00012699,2]
[355281777,1741054236744,-271.10446749,0.00012699,2]
[355281778,1741054236754,-236.04053251,0.00012699,2]
[355281779,1741054236791,-254.89,0.00012699,2]
[355281780,1741054236802,-464.86946749,0.00012699,2]
[355281781,1741054236812,-519.07989816,0.00012699,2]
[355281782,1741054236878,-490.32032617,0.00012699,2]
[355281783,1741054236891,-447.79397632,0.00012699,2]
[355281784,1741054236903,-2594.76579935,0.00012699,2]
[355281785,1741054236913,-1267.54,0.00012699,2]
[355281786,1741054236923,-1096.5,0.00012699,2]
[355281787,1741054236933,-771.92,0.00012699,2]
[355281788,1741054236947,-3005.26,0.00012699,2]
[355281789,1741054236958,-597.3,0.00012699,2]
[355281790,1741054236967,-1198.84,0.00012699,2]
[355281791,1741054236977,-150.0,0.000127,2]
[355281792,1741054236987,-28348.65565893,0.000127,2]
[355281793,1741054236999,-4208.01786348,0.000127,2]
[355281794,1741054237028,-915.6071618,0.000127,2]
[355281823,1741054238087,-4821.67992046,0.000127,2]
[355281824,1741054238103,-1198.06112359,0.000127,2]
[355281825,1741054238173,-828.485,0.000127,2]
[355281826,1741054238258,-667.363998,0.000127,2]
[355281827,1741054238301,-2912.48,0.000127,2]
[355281828,1741054238324,-1322.96327026,0.000127,2]
[355281983,1741054240183,-8152.48,0.00012699,2]
[355281985,1741054240197,-16857.1204996,0.000127,2]
[355281987,1741054240209,-3798.462925,0.000127,2]
[355281994,1741054240270,-415.00105249,0.000127,2]
[355281996,1741054240283,-103664.60616423,0.000127,2]
[355281998,1741054240294,-1600.0,0.000127,4]
[355282000,1741054240304,-177.0,0.000127,3]
[355282002,1741054240314,-5992.66752835,0.00012703,2]
[355282004,1741054240324,-3249.53874243,0.00012722,2]
[355282006,1741054240334,-595.79,0.00012728,2]
[355282008,1741054240344,-500.0,0.00012728,2]
[355282010,1741054240354,-516.57331755,0.00012729,2]
[355282012,1741054240364,-2386.41,0.00012729,2]
[355282014,1741054240374,-1449.568347,0.00012729,2]
[355282016,1741054240384,-761.05,0.00012729,2]
[355282018,1741054240395,-3786.27,0.00012729,2]
[355282020,1741054240404,-1103.47007042,0.00012729,2]
[355282023,1741054240417,-871.45944858,0.00012729,2]
[355282024,1741054240427,-2959.34,0.00012729,2]
[355282027,1741054240438,-159.925402,0.00012729,2]
[355282028,1741054240453,-845.81,0.00012729,2]
[355282030,1741054240464,-151.788437,0.00012729,2]
[355282032,1741054240475,-571.36,0.00012729,2]
[355282034,1741054240486,-2245.78,0.00012729,2]
[355282037,1741054240496,-325.85991237,0.00012729,2]
[355282040,1741054240519,-419.34533748,0.00012729,2]
[355282081,1741054240961,-531.56800002,0.00012729,2]
[355282084,1741054240974,-786.49262927,0.00012729,2]
[355282088,1741054241010,-318.48412086,0.00012729,2]
[355282090,1741054241020,-963.03861735,0.00012729,2]
[355282092,1741054241031,-665.38138265,0.00012729,2]
[355282094,1741054241041,-2193.85,0.00012729,2]
[355282096,1741054241054,-2308.97,0.00012729,2]
[355282098,1741054241064,-1576.55,0.00012729,2]
[355282100,1741054241074,-7724.76,0.00012729,2]
[355282102,1741054241084,-2486.41,0.00012729,2]
[355282104,1741054241095,-948.57,0.00012729,2]
[355282106,1741054241105,-2479.84,0.00012729,2]
[355282108,1741054241115,-7031.36,0.00012729,2]
[355282110,1741054241126,-2064.93,0.00012729,2]
[355282112,1741054241135,-500.0,0.00012729,2]
[355282114,1741054241145,-1317.75,0.00012729,2]
[355282116,1741054241156,-1258.1,0.00012729,2]
[355282118,1741054241166,-18165.96,0.00012729,2]
[355282120,1741054241177,-1818.24,0.00012729,2]
[355282122,1741054241187,-1102.41,0.00012729,2]
[355282124,1741054241202,-500.57950472,0.00012729,2]
[355282126,1741054241211,-554.62682087,0.00012729,2]
[355282128,1741054241221,-1519.35,0.00012729,2]
[355282130,1741054241230,-1492.99,0.00012729,2]
[355282131,1741054241240,-2616.9705,0.00012734,2]
[355282133,1741054241250,-5992.66752835,0.00012736,2]
[355282135,1741054241259,-184.5421252,0.00012739,2]
[355282137,1741054241269,-3249.53874243,0.00012747,2]
[355282139,1741054241279,-5992.66752835,0.00012769,2]
[355282141,1741054241288,-1429.74,0.00012771,2]
[355282143,1741054241298,-1229.87,0.00012771,2]
[355282145,1741054241308,-2881.22,0.00012771,2]
[355282147,1741054241319,-227.74483566,0.00012771,2]
[355282149,1741054241329,-1160.55,0.00012771,2]
[355282151,1741054241340,-563.83,0.00012771,2]
[355282153,1741054241352,-500.0,0.00012771,2]
[355282155,1741054241362,-610.56,0.00012771,2]
[355282157,1741054241373,-500.0,0.00012771,2]
[355282159,1741054241382,-776.97,0.00012771,2]
[355282161,1741054241392,-1270.25,0.00012771,2]
[355282163,1741054241402,-500.0,0.00012771,2]
[355282165,1741054241412,-563.2,0.00012771,2]
[355282167,1741054241423,-1400.19,0.00012771,2]
[355282169,1741054241432,-768.71,0.00012771,2]
[355282171,1741054241446,-823.9,0.00012771,2]
[355282173,1741054241455,-1270.46,0.00012771,2]
[355282175,1741054241465,-795.4,0.00012771,2]
[355282177,1741054241475,-500.0,0.00012771,2]
[355282179,1741054241485,-529.24305732,0.00012771,2]
[355282181,1741054241494,-664.8,0.00012771,2]
[355282183,1741054241504,-719.94,0.00012771,2]
[355282185,1741054241514,-500.0,0.00012771,2]
[355282187,1741054241524,-898.65,0.00012771,2]
[355282189,1741054241534,-500.0,0.00012771,2]
[355282191,1741054241545,-500.0,0.00012771,2]
[355282193,1741054241555,-1031.92,0.00012771,2]
[355282195,1741054241565,-263.49654531,0.00012771,2]
[355282197,1741054241574,-799.89,0.00012771,2]
[355282199,1741054241584,-694.1,0.00012771,2]
[355282200,1741054241593,-803.83,0.00012771,2]
[355282203,1741054241603,-500.0,0.00012771,2]
[355282204,1741054241613,-514.65,0.00012771,2]
[355282206,1741054241623,-1332.85,0.00012771,2]
[355282208,1741054241633,-1531.94,0.00012771,2]
[355282210,1741054241643,-1362.88,0.00012771,2]
[355282212,1741054241653,-658.67,0.00012771,2]
[355282214,1741054241663,-500.0,0.00012771,2]
[355282216,1741054241674,-500.0,0.00012771,2]
[355282218,1741054241684,-500.0,0.00012771,2]
[355282220,1741054241698,-616.93,0.00012771,2]
[355282222,1741054241708,-544.21078187,0.00012771,2]
[355282224,1741054241718,-207.44998692,0.00012771,2]
[355282226,1741054241728,-337.93183307,0.00012771,2]
[355282228,1741054241737,-561.57179289,0.00012771,2]
[355282230,1741054241746,-302.70815714,0.00012771,2]
[355282232,1741054241756,-506.83401266,0.00012771,2]
[355282234,1741054241766,-796.12,0.00012771,2]
[355282236,1741054241777,-853.36,0.00012771,2]
[355282238,1741054241786,-1703.91,0.00012771,2]
[355282240,1741054241796,-781.44,0.00012771,2]
[355282242,1741054241806,-500.0,0.00012771,2]
[355282244,1741054241816,-1049.05,0.00012771,2]
[355282246,1741054241826,-1163.28,0.00012771,2]
[355282248,1741054241836,-763.31,0.00012771,2]
[355282250,1741054241846,-696.23,0.00012771,2]
[355282252,1741054241855,-1320.88,0.00012771,2]
[355282254,1741054241865,-1310.91,0.00012771,2]
[355282256,1741054241875,-500.0,0.00012771,2]
[355282258,1741054241886,-652.64,0.00012771,2]
[355282260,1741054241895,-1195.76,0.00012771,2]
[355282262,1741054241904,-728.06,0.00012771,2]
[355282264,1741054241914,-979.76,0.00012771,2]
[355282266,1741054241925,-1349.31,0.00012771,2]
[355282268,1741054241934,-631.83580844,0.00012771,2]
[355282270,1741054241951,-500.0,0.00012771,2]
[355282272,1741054241961,-510.81114962,0.00012771,2]
[355282274,1741054241972,-505.23206607,0.00012771,2]
[355282276,1741054241982,-503.15891962,0.00012771,2]
[355282278,1741054241993,-1532.25,0.00012771,2]
[355282280,1741054242005,-500.0,0.00012771,2]
[355282282,1741054242015,-500.0,0.00012771,2]
[355282284,1741054242027,-554.92,0.00012771,2]
[355282286,1741054242039,-311.65271144,0.00012771,2]
[355282288,1741054242048,-1729.0,0.00012771,2]
[355282289,1741054242058,-503.7220245,0.00012771,2]
[355282291,1741054242069,-1750.03,0.00012771,2]
[355282293,1741054242079,-493.83120734,0.00012771,2]
[355282295,1741054242088,-506.3551082,0.00012771,2]
[355282297,1741054242098,-968.6,0.00012771,2]
[355282299,1741054242108,-800.5,0.00012771,2]
[355282301,1741054242118,-330.80703194,0.00012771,2]
[355282303,1741054242128,-506.37529216,0.00012771,2]
[355282305,1741054242138,-648.11141981,0.00012771,2]
[355282307,1741054242147,-507.42096783,0.00012771,2]
[355282309,1741054242157,-500.0,0.00012771,2]
[355282311,1741054242167,-537.97981269,0.00012771,2]
[355282313,1741054242176,-508.44116989,0.00012771,2]
[355282315,1741054242187,-1466.22,0.00012771,2]
[355282317,1741054242201,-500.0,0.00012771,2]
[355282319,1741054242211,-524.94178157,0.00012771,2]
[355282321,1741054242221,-502.26339451,0.00012771,2]
[355282323,1741054242231,-1315.7,0.00012771,2]
[355282325,1741054242241,-500.0,0.00012771,2]
[355282327,1741054242251,-507.16777929,0.00012771,2]
[355282329,1741054242261,-500.0,0.00012771,2]
[355282331,1741054242271,-517.9139388,0.00012771,2]
[355282333,1741054242282,-1425.98,0.00012771,2]
[355282335,1741054242292,-1416.68,0.00012771,2]
[355282337,1741054242302,-1597.25,0.00012771,2]
[355282339,1741054242313,-500.0,0.00012771,2]
[355282341,1741054242322,-502.25310842,0.00012771,2]
[355282343,1741054242332,-1246.1,0.00012771,2]
[355282345,1741054242342,-509.15396479,0.00012771,2]
[355282347,1741054242351,-1180.01,0.00012771,2]
[355282349,1741054242361,-709.57,0.00012771,2]
[355282351,1741054242371,-799.08,0.00012771,2]
[355282353,1741054242381,-502.68651455,0.00012771,2]
[355282355,1741054242390,-506.9253636,0.00012771,2]
[355282356,1741054242399,-500.0,0.00012771,2]
[355282358,1741054242409,-630.84,0.00012771,2]
[355282360,1741054242418,-505.78885978,0.00012771,2]
[355282362,1741054242428,-500.0,0.00012771,2]
[355282364,1741054242437,-503.51481657,0.00012771,2]
[355282366,1741054242452,-500.0,0.00012771,2]
[355282368,1741054242462,-500.0,0.00012771,2]
[355282370,1741054242472,-508.41819442,0.00012771,2]
[355282372,1741054242482,-500.0,0.00012771,2]
[355282374,1741054242491,-500.0,0.00012771,2]
[355282376,1741054242500,-505.10101372,0.00012771,2]
[355282378,1741054242509,-1846.02,0.00012771,2]
[355282380,1741054242519,-504.29143847,0.00012771,2]
[355282382,1741054242530,-188.31449056,0.00012771,2]
[355282385,1741054242544,-775.42550944,0.00012771,2]
[355282387,1741054242553,-501.86702592,0.00012771,2]
[355282389,1741054242563,-1715.49,0.00012771,2]
[355282391,1741054242573,-510.86443795,0.00012771,2]
[355282393,1741054242582,-506.50973426,0.00012771,2]
[355282395,1741054242592,-500.0,0.00012771,2]
[355282397,1741054242602,-500.0,0.00012771,2]
[355282399,1741054242611,-500.0,0.00012771,2]
[355282401,1741054242621,-498.35234719,0.00012771,2]
[355282403,1741054242631,-1230.89,0.00012771,2]
[355282405,1741054242640,-1024.71,0.00012771,2]
[355282407,1741054242649,-500.0,0.00012771,2]
[355282409,1741054242659,-1510.42,0.00012771,2]
[355282411,1741054242668,-328.11243653,0.00012771,2]
[355282413,1741054242678,-1311.63,0.00012771,2]
[355282414,1741054242688,-507.9064184,0.00012771,2]
[355282416,1741054242700,-1225.26,0.00012771,2]
[355282418,1741054242709,-325.69890286,0.00012771,2]
[355282420,1741054242719,-3249.53874243,0.00012773,2]
[355282422,1741054242728,-500.0,0.0001278,2]
[355282424,1741054242737,-500.0,0.0001278,2]
[355282426,1741054242747,-44.44569547,0.0001278,2]
[355282429,1741054242759,-455.55430453,0.0001278,2]
[355282431,1741054242769,-309.68200496,0.0001278,2]
[355282433,1741054242779,-586.18,0.00012781,2]
[355282435,1741054242788,-652.79,0.00012781,2]
[355282437,1741054242798,-500.0,0.00012781,2]
[355282439,1741054242807,-383.21544463,0.00012781,2]
[355282441,1741054242816,-500.0,0.00012781,2]
[355282443,1741054242825,-500.0,0.00012781,2]
[355282445,1741054242834,-500.0,0.00012781,2]
[355282446,1741054242844,-754.43,0.00012781,2]
[355282448,1741054242853,-500.0,0.00012781,2]
[355282450,1741054242862,-500.0,0.00012781,2]
[355282453,1741054242872,-500.0,0.00012781,2]
[355282454,1741054242881,-642.25,0.00012781,2]
[355282457,1741054242891,-500.0,0.00012781,2]
[355282459,1741054242900,-500.0,0.00012781,2]
[355282462,1741054242910,-500.0,0.00012781,2]
[355282465,1741054242919,-500.0,0.00012781,2]
[355282468,1741054242929,-500.0,0.00012781,2]
[355282471,1741054242938,-518.06695552,0.00012781,2]
[355282473,1741054242950,-159.18,0.00012781,2]
[355282476,1741054242960,-521.77589509,0.00012781,2]
[355282479,1741054242969,-500.0,0.00012781,2]
[355282482,1741054242979,-187.42846016,0.00012781,2]
[355282485,1741054242988,-500.0,0.00012781,2]
[355282488,1741054242998,-900.58,0.00012781,2]
[355282491,1741054243012,-755.71,0.00012781,2]
[355282494,1741054243021,-510.04391265,0.00012781,2]
[355282497,1741054243031,-682.9,0.00012781,2]
[355282500,1741054243040,-508.31155542,0.00012781,2]
[355282503,1741054243050,-500.0,0.00012781,2]
[355282506,1741054243060,-511.09741557,0.00012781,2]
[355282509,1741054243070,-460.43789561,0.00012781,2]
[355282512,1741054243079,-506.2670323,0.00012781,2]
[355282515,1741054243088,-500.0,0.00012781,2]
[355282517,1741054243098,-500.0,0.00012781,2]
[355282519,1741054243109,-813.06,0.00012781,2]
[355282521,1741054243118,-863.11,0.00012781,2]
[355282523,1741054243127,-578.08,0.00012781,2]
[355282525,1741054243137,-500.0,0.00012781,2]
[355282528,1741054243146,-552.72,0.00012781,2]
[355282531,1741054243156,-1029.7,0.00012781,2]
[355282534,1741054243167,-887.28,0.00012781,2]
[355282537,1741054243177,-500.0,0.00012781,2]
[355282540,1741054243187,-500.0,0.00012781,2]
[355282542,1741054243201,-500.0,0.00012781,2]
[355282544,1741054243210,-487.89266485,0.00012781,2]
[355282546,1741054243220,-500.0,0.00012781,2]
[355282548,1741054243230,-500.0,0.00012781,2]
[355282550,1741054243240,-611.3,0.00012781,2]
[355282552,1741054243250,-500.0,0.00012781,2]
[355282554,1741054243261,-500.0,0.00012781,2]
[355282556,1741054243271,-930.61,0.00012781,2]
[355282557,1741054243282,-500.0,0.00012781,2]
[355282558,1741054243292,-640.33431526,0.00012781,2]
[355282559,1741054243302,-500.0,0.00012781,2]
[355282560,1741054243313,-579.76,0.00012781,2]
[355282561,1741054243322,-225.55985268,0.00012781,2]
[355282562,1741054243332,-638.61,0.00012781,2]
[355282563,1741054243342,-500.0,0.00012781,2]
[355282564,1741054243352,-527.22,0.00012781,2]
[355282565,1741054243362,-661.49,0.00012781,2]
[355282566,1741054243372,-500.0,0.00012781,2]
[355282567,1741054243383,-500.0,0.00012781,2]
[355282568,1741054243392,-795.06,0.00012781,2]
[355282569,1741054243402,-735.22,0.00012781,2]
[355282570,1741054243412,-500.0,0.00012781,2]
[355282571,1741054243422,-500.0,0.00012781,2]
[355282572,1741054243432,-500.0,0.00012781,2]
[355282573,1741054243446,-505.21552395,0.00012781,2]
[355282574,1741054243456,-500.0,0.00012781,2]
[355282575,1741054243466,-502.45923391,0.00012781,2]
[355282576,1741054243476,-500.0,0.00012781,2]
[355282577,1741054243486,-333.09223218,0.00012781,2]
[355282579,1741054243497,-500.0,0.00012781,2]
[355282581,1741054243512,-253.79108446,0.00012781,2]
[355282583,1741054243522,-500.0,0.00012781,2]
[355282585,1741054243533,-756.92,0.00012781,2]
[355282587,1741054243543,-641.93,0.00012781,2]
[355282589,1741054243553,-500.0,0.00012781,2]
[355282591,1741054243563,-521.82515351,0.00012781,2]
[355282593,1741054243573,-519.94078708,0.00012781,2]
[355282595,1741054243582,-505.88255159,0.00012781,2]
[355282597,1741054243593,-533.33278764,0.00012781,2]
[355282599,1741054243603,-621.3,0.00012781,2]
[355282601,1741054243612,-508.8260858,0.00012781,2]
[355282602,1741054243622,-714.83,0.00012781,2]
[355282604,1741054243632,-500.0,0.00012781,2]
[355282606,1741054243642,-4774.62,0.00012781,2]
[355282608,1741054243652,-508.46525869,0.00012781,2]
[355282610,1741054243662,-1748.73,0.00012781,2]
[355282612,1741054243671,-513.31762863,0.00012781,2]
[355282614,1741054243682,-2337.88,0.00012781,2]
[355282616,1741054243695,-500.0,0.00012781,2]
[355282618,1741054243704,-504.33955737,0.00012781,2]
[355282620,1741054243714,-5634.91,0.00012781,2]
[355282622,1741054243723,-500.0,0.00012781,2]
[355282624,1741054243733,-169.01812185,0.00012781,2]
[355282626,1741054243743,-861.61,0.00012781,2]
[355282628,1741054243753,-511.966505,0.00012781,2]
[355282630,1741054243762,-596.30898397,0.00012781,2]
[355282632,1741054243772,-923.83,0.00012781,2]
[355282634,1741054243782,-203.4359471,0.00012781,2]
[355282636,1741054243792,-500.0,0.00012781,2]
[355282638,1741054243802,-510.43079893,0.00012781,2]
[355282640,1741054243811,-792.03,0.00012781,2]
[355282642,1741054243821,-498.06197601,0.00012781,2]
[355282643,1741054243830,-500.0,0.00012781,2]
[355282646,1741054243840,-4219.1,0.00012781,2]
[355282647,1741054243850,-6061.57,0.00012781,2]
[355282649,1741054243860,-500.0,0.00012781,2]
[355282651,1741054243871,-507.5825995,0.00012781,2]
[355282653,1741054243881,-583.52,0.00012781,2]
[355282655,1741054243892,-504.4168439,0.00012781,2]
[355282657,1741054243901,-517.25823944,0.00012781,2]
[355282659,1741054243911,-2684.58,0.00012781,2]
[355282661,1741054243921,-1764.92,0.00012781,2]
[355282663,1741054243930,-849.35,0.00012781,2]
[355282665,1741054243940,-891.84,0.00012781,2]
[355282667,1741054243952,-500.0,0.00012781,2]
[355282669,1741054243962,-2929.77,0.00012781,2]
[355282671,1741054243972,-500.0,0.00012781,2]
[355282673,1741054243984,-2539.05,0.00012781,2]
[355282676,1741054243995,-5213.91,0.00012781,2]
[355282677,1741054244005,-796.17,0.00012781,2]
[355282679,1741054244014,-1691.72,0.00012781,2]
[355282681,1741054244024,-500.0,0.00012781,2]
[355282684,1741054244039,-500.0,0.00012781,2]
[355282685,1741054244049,-571.35258586,0.00012781,2]
[355282687,1741054244059,-500.0,0.00012781,2]
[355282689,1741054244068,-501.7775418,0.00012781,2]
[355282691,1741054244079,-640.43,0.00012781,2]
[355282693,1741054244088,-507.18993587,0.00012781,2]
[355282695,1741054244098,-3251.4,0.00012781,2]
[355282697,1741054244108,-550.96,0.00012781,2]
[355282699,1741054244118,-2552.85,0.00012781,2]
[355282701,1741054244128,-843.9,0.00012781,2]
[355282703,1741054244138,-500.0,0.00012781,2]
[355282705,1741054244147,-515.79473093,0.00012781,2]
[355282707,1741054244157,-505.87809016,0.00012781,2]
[355282709,1741054244166,-11849.29,0.00012781,2]
[355282711,1741054244176,-592.54637254,0.00012781,2]
[355282713,1741054244186,-500.0,0.00012781,2]
[355282715,1741054244198,-3272.25,0.00012781,2]
[355282717,1741054244208,-509.04687576,0.00012781,2]
[355282719,1741054244217,-510.77796299,0.00012781,2]
[355282721,1741054244227,-1059.66,0.00012781,2]
[355282723,1741054244237,-520.79,0.00012781,2]
[355282725,1741054244247,-513.23663164,0.00012781,2]
[355282727,1741054244257,-1986.64,0.00012781,2]
[355282729,1741054244267,-502.54356887,0.00012781,2]
[355282731,1741054244277,-506.4633575,0.00012781,2]
[355282733,1741054244288,-500.0,0.00012781,2]
[355282735,1741054244298,-504.79115951,0.00012781,2]
[355282737,1741054244309,-967.78,0.00012781,2]
[355282758,1741054244319,-851.79,0.00012781,2]
[355282760,1741054244527,-1099.91,0.00012781,2]
[355282762,1741054244536,-500.0,0.00012781,2]
[355282764,1741054244545,-523.35534773,0.00012781,2]
[355282766,1741054244555,-1196.94,0.00012781,2]
[355282768,1741054244564,-1003.68,0.00012781,2]
[355282770,1741054244573,-502.94295341,0.00012781,2]
[355282772,1741054244583,-500.0,0.00012781,2]
[355282774,1741054244592,-501.49771445,0.00012781,2]
[355282776,1741054244602,-500.0,0.00012781,2]
[355282778,1741054244611,-500.0,0.00012781,2]
[355282780,1741054244621,-500.0,0.00012781,2]
[355282782,1741054244630,-1872.31,0.00012781,2]
[355282784,1741054244640,-507.34172081,0.00012781,2]
[355282786,1741054244649,-520.69687891,0.00012781,2]
[355282788,1741054244659,-583.41,0.00012781,2]
[355282790,1741054244668,-503.62078387,0.00012781,2]
[355282792,1741054244677,-690.69,0.00012781,2]
[355282794,1741054244688,-736.09,0.00012781,2]
[355282796,1741054244701,-1025.84,0.00012781,2]
[355282798,1741054244711,-413.25779719,0.00012781,2]
[355282800,1741054244720,-513.89668751,0.00012781,2]
[355282801,1741054244730,-2195.09,0.00012781,2]
[355282803,1741054244739,-583.27,0.00012781,2]
[355282805,1741054244749,-680.0,0.00012781,2]
[355282808,1741054244761,-694.41,0.00012781,2]
[355282810,1741054244771,-1854.23,0.00012781,2]
[355282812,1741054244781,-1481.1,0.00012781,2]
[355282814,1741054244790,-500.0,0.00012781,2]
[355282815,1741054244800,-711.73,0.00012781,2]
[355282817,1741054244810,-507.91463527,0.00012781,2]
[355282819,1741054244819,-500.0,0.00012781,2]
[355282821,1741054244829,-1959.92,0.00012781,2]
[355282823,1741054244839,-513.32762091,0.00012781,2]
[355282825,1741054244848,-505.5722481,0.00012781,2]
[355282827,1741054244858,-2451.04,0.00012781,2]
[355282829,1741054244868,-167637.867,0.00012781,2]
[355282831,1741054244878,-26876.23936069,0.00012782,2]
[355282833,1741054244887,-500.0,0.00012782,2]
[355282835,1741054244896,-12003.8978,0.00012782,2]
[355282837,1741054244906,-644.4126,0.00012782,2]
[355282839,1741054244915,-1676.4072,0.00012782,2]
[355282841,1741054244925,-13943.7378,0.00012782,2]
[355282843,1741054244935,-2625.3601,0.00012782,2]
[355282845,1741054244947,-202.58967127,0.00012782,2]
[355282847,1741054244956,-3249.53874243,0.00012798,2]
[355282849,1741054244966,-300.0,0.000128,4]
[355282851,1741054244975,-344.31,0.000128,2]
[355282853,1741054244985,-5992.66752835,0.00012802,2]
[355282855,1741054244995,-578.0,0.00012822,2]
[355282857,1741054245005,-3249.53874243,0.00012824,2]
[355282859,1741054245018,-5992.66752835,0.00012834,2]
[355282862,1741054245027,-3249.53874243,0.00012849,2]
[355282864,1741054245037,-433.40598907,0.00012866,2]
[355282866,1741054245047,-5992.66752835,0.00012867,2]
[355282868,1741054245056,-279.43259,0.0001287,2]
[355282870,1741054245066,-3249.53874243,0.00012875,2]